bitfinex/quotes_BTCUSD_20220207
["timestamp","ask_amount","ask_price","bid_price","bid_amount"]
[1644213367729,0.26349485,42830.0,42824.0,0.0468]
[1644213367929,0.26412591,42830.0,42824.0,0.0468]
[1644213368173,0.32911615,42830.0,42824.0,0.0468]
[1644213368774,0.32848509,42830.0,42824.0,0.0468]
[1644213368974,0.32911615,42830.0,42824.0,0.0468]
[1644213369980,0.32848509,42830.0,42824.0,0.0468]
[1644213370279,0.32911615,42830.0,42824.0,0.0468]
[1644213371281,0.32848509,42830.0,42824.0,0.0468]
[1644213371480,0.32911615,42830.0,42824.0,0.0468]
[1644213372335,0.32848509,42830.0,42824.0,0.0468]
[1644213372534,0.328675,42830.0,42824.0,0.0468]
[1644213372733,0.328675,42830.0,42824.0,0.0968]
[1644213372932,0.328675,42830.0,42825.0,0.05]
[1644213373633,0.32848509,42830.0,42820.0,0.058359]
[1644213373834,0.32848509,42830.0,42821.0,0.05]
[1644213373835,0.326806,42829.0,42821.0,0.05]
[1644213374035,0.326806,42829.0,42814.0,0.1]
[1644213374036,0.32708849,42829.0,42815.0,0.05]
[1644213374233,0.32708849,42829.0,42814.0,0.05]
[1644213374434,0.25961152,42822.0,42813.0,0.2201]
[1644213374634,0.25961152,42822.0,42813.0,0.1]
[1644213374934,0.47576383,42822.0,42814.0,0.05]
[1644213375136,0.47576383,42822.0,42812.0,0.05]
[1644213375334,0.47576383,42822.0,42811.0,0.25]
[1644213375581,0.47576383,42822.0,42814.0,0.05]
[1644213375981,0.28939976,42821.0,42814.0,0.05]
[1644213376181,0.28939976,42821.0,42816.0,0.00070002]
[1644213376781,0.28939976,42821.0,42816.0,0.00770002]
[1644213376984,0.07423622,42817.0,42816.0,0.00770002]
[1644213377182,0.28939976,42821.0,42816.0,0.00770002]
[1644213377384,0.29554218,42824.0,42819.0,0.05]
[1644213377583,0.326806,42828.0,42819.0,0.05]
[1644213377787,0.33784224,42827.0,42816.0,0.00770002]
[1644213377984,0.33784224,42827.0,42815.0,0.05]
[1644213378185,0.06670193,42818.0,42814.0,0.1226]
[1644213378385,0.06670193,42818.0,42815.0,0.326806]
[1644213378584,0.06670193,42818.0,42812.0,0.05]
[1644213378786,0.06670193,42818.0,42814.0,0.027]
[1644213378984,0.24842382,42817.0,42814.0,0.027]
[1644213379626,1.83443904,42818.0,42814.0,0.027]
[1644213379829,0.06670193,42818.0,42814.0,0.027]
[1644213380027,0.06670193,42818.0,42812.0,0.05]
[1644213380627,0.06670193,42818.0,42809.0,0.05]
[1644213380827,0.06670193,42818.0,42812.0,0.012]
[1644213381128,0.06670193,42818.0,42813.0,0.00070005]
[1644213382027,0.06670193,42818.0,42812.0,0.05]
[1644213382245,0.06670193,42818.0,42813.0,0.00070005]
[1644213382827,0.06670193,42818.0,42813.0,0.00770005]
[1644213383281,0.269487,42817.0,42813.0,0.007]
[1644213383581,0.06670193,42818.0,42813.0,0.00770005]
[1644213384180,0.06670193,42818.0,42813.0,0.00070005]
[1644213384481,0.06670193,42818.0,42809.0,0.05]
[1644213384686,0.06670193,42818.0,42813.0,0.00670005]
[1644213384882,0.26639584,42817.0,42813.0,0.00670005]
[1644213385083,0.06670193,42818.0,42813.0,0.00670005]
[1644213385985,0.06670193,42818.0,42813.0,0.00070005]
[1644213386687,0.19444024,42814.0,42813.0,0.00770005]
[1644213387625,0.06670193,42818.0,42813.0,0.00770005]
[1644213388026,0.06670193,42818.0,42807.0,0.05]
[1644213388226,0.06670193,42818.0,42813.0,0.00070005]
[1644213388825,0.06670193,42818.0,42813.0,0.00870005]
[1644213389226,0.22735005,42815.0,42813.0,0.008]
[1644213389428,0.22735005,42815.0,42813.0,0.00870005]
[1644213390029,0.06670193,42818.0,42813.0,0.00070005]
[1644213390428,0.06670193,42818.0,42807.0,0.1]
[1644213390677,0.25447717,42814.0,42813.0,0.00070005]
[1644213391476,0.06670193,42818.0,42813.0,0.00070005]
[1644213391678,0.26266304,42817.0,42810.0,0.058376]
[1644213391979,0.06670193,42818.0,42811.0,0.00070007]
[1644213392378,0.27990533,42817.0,42811.0,0.00070007]
[1644213392778,0.27990533,42817.0,42808.0,0.05]
[1644213392981,0.27990533,42817.0,42812.0,0.00070006]
[1644213393178,0.22976047,42814.0,42812.0,0.00070006]
[1644213393581,0.27990533,42817.0,42812.0,0.00070006]
[1644213393978,0.27990533,42817.0,42811.0,0.1]
[1644213394180,0.27990533,42817.0,42812.0,0.00070006]
[1644213394825,0.20707803,42816.0,42812.0,0.01670006]
[1644213395226,0.20707803,42816.0,42812.0,0.016]
[1644213395428,0.24308118,42814.0,42812.0,0.016]
[1644213395628,0.25825545,42813.0,42812.0,0.016]
[1644213395829,0.58506145,42813.0,42812.0,0.016]
[1644213396028,0.326806,42813.0,42805.0,0.5649]
[1644213396230,0.24308118,42814.0,42805.0,0.6649]
[1644213396529,0.24308118,42814.0,42808.0,0.05]
[1644213396530,2.85868324,42814.0,42808.0,0.05]
[1644213396729,0.07650294,42809.0,42807.0,0.00069953]
[1644213397528,0.07650294,42809.0,42805.0,0.009]
[1644213398176,0.07650294,42809.0,42806.0,0.05]
[1644213398378,0.07650294,42809.0,42807.0,0.05]
[1644213398575,0.07650294,42809.0,42802.0,0.05]
[1644213398779,0.07650294,42809.0,42806.0,0.067]
[1644213398977,0.25552418,42807.0,42806.0,0.067]
[1644213399578,0.1935355,42807.0,42806.0,0.067]
[1644213399976,0.1935355,42807.0,42803.0,0.00020064]
[1644213400276,0.1935355,42807.0,42804.0,0.376806]
[1644213400478,0.1935355,42807.0,42804.0,0.05]
[1644213400681,0.42401899,42807.0,42803.0,0.05]
[1644213400880,0.42801899,42807.0,42804.0,0.063]
[1644213402023,0.42401899,42807.0,42803.0,0.00070844]
[1644213402221,0.42401899,42807.0,42803.0,0.0005078]
[1644213402422,0.42401899,42807.0,42800.0,0.00020064]
[1644213402622,0.42401899,42807.0,42803.0,0.0005078]
[1644213402824,0.42501899,42807.0,42803.0,0.0715078]
[1644213403323,0.42501899,42807.0,42803.0,0.1715078]
[1644213403522,0.42501899,42807.0,42803.0,0.171]
[1644213403722,0.42501899,42807.0,42803.0,0.12169742]
[1644213404722,0.42401899,42807.0,42803.0,0.05]
[1644213404922,0.42601899,42807.0,42803.0,0.04469742]
[1644213405983,0.42601899,42807.0,42803.0,0.044]
[1644213406184,0.42401899,42807.0,42803.0,0.00069742]
[1644213406781,1.78484764,42806.0,42803.0,0.03369742]
[1644213406982,0.25898187,42805.0,42803.0,0.03369742]
[1644213407283,0.25898187,42805.0,42803.0,0.033]
[1644213407482,0.42701899,42807.0,42803.0,0.033]
[1644213407682,0.42701899,42807.0,42803.0,0.03320064]
[1644213408084,0.42401899,42807.0,42803.0,0.00020064]
[1644213408282,0.42401899,42807.0,42802.0,0.00069742]
[1644213408484,0.06420277,42800.0,42797.0,0.00020064]
[1644213408684,0.06420277,42800.0,42798.0,0.326806]
[1644213408884,0.06420277,42800.0,42798.0,0.05]
[1644213409088,0.06420277,42800.0,42797.0,0.12517527]
[1644213409335,0.06420277,42800.0,42798.0,0.326806]
[1644213409526,0.06420277,42800.0,42798.0,0.376806]
[1644213409726,0.06420277,42800.0,42797.0,0.00089813]
[1644213409927,0.42701899,42807.0,42798.0,0.326806]
[1644213410126,0.42701899,42807.0,42797.0,0.00089813]
[1644213410127,0.42401899,42807.0,42797.0,0.00089813]
[1644213410428,0.05,42800.0,42797.0,0.37257484]
[1644213410627,0.05,42800.0,42798.0,0.326806]
[1644213410827,0.05,42800.0,42799.0,0.61859045]
[1644213411827,0.05,42800.0,42799.0,0.70386856]
[1644213412029,0.05,42800.0,42799.0,0.90066856]
[1644213412528,0.05,42800.0,42799.0,0.81539045]
[1644213412927,0.05,42800.0,42799.0,0.84039045]
[1644213413377,0.05,42800.0,42799.0,0.74039045]
[1644213413977,0.05,42800.0,42799.0,0.71539045]
[1644213414778,0.05,42800.0,42799.0,0.74039045]
[1644213415879,0.05,42800.0,42799.0,0.84039045]
[1644213416080,0.05,42800.0,42799.0,0.81539045]
[1644213416684,0.05,42800.0,42799.0,0.94036508]
[1644213416940,0.05,42800.0,42799.0,0.96436508]
[1644213417344,0.05,42800.0,42799.0,0.83939045]
[1644213417541,0.05,42800.0,42799.0,0.96436508]
[1644213417942,0.05,42800.0,42799.0,0.83939045]
[1644213418142,0.05,42800.0,42799.0,0.81539045]
[1644213418642,0.05,42800.0,42799.0,0.94036508]
[1644213418842,0.05,42800.0,42799.0,0.84439045]
[1644213419042,0.05,42800.0,42799.0,0.96936508]
[1644213419245,0.05,42800.0,42799.0,0.84439045]
[1644213419442,0.05,42800.0,42799.0,0.96936508]
[1644213419641,0.05,42800.0,42799.0,0.84439045]
[1644213419843,0.05,42800.0,42799.0,0.96936508]
[1644213420042,0.05,42800.0,42799.0,0.81539045]
[1644213420685,0.178192,42844.0,42799.0,0.81539045]
[1644213420881,0.08197471,42815.0,42808.0,0.07272398]
[1644213421081,0.08197471,42815.0,42809.0,0.05]
[1644213421280,0.08197471,42815.0,42809.0,0.1]
[1644213421680,0.08197471,42815.0,42810.0,0.21608722]
[1644213421886,0.08197471,42815.0,42810.0,0.48714971]
[1644213422980,0.1,42824.0,42810.0,0.48714971]
[1644213423282,0.29705613,42837.0,42809.0,0.1]
[1644213423283,0.326806,42838.0,42822.0,0.53214484]
[1644213423484,0.00028173,42829.0,42822.0,0.28214484]
[1644213423681,0.0468,42839.0,42822.0,0.28214484]
[1644213423883,0.00028173,42837.0,42822.0,0.28214484]
[1644213424082,0.06456498,42838.0,42831.0,0.06953075]
[1644213424334,0.19086119,42836.0,42829.0,0.30411962]
[1644213424530,0.18586119,42836.0,42829.0,0.30411962]
[1644213424727,0.326806,42835.0,42829.0,0.30411962]
[1644213424925,0.32708773,42835.0,42829.0,0.30411962]
[1644213425324,0.37708773,42835.0,42829.0,0.30411962]
[1644213425525,0.15148,42833.0,42829.0,0.30411962]
[1644213425724,0.29706106,42832.0,42829.0,0.30411962]
[1644213425926,0.326806,42831.0,42829.0,0.30411962]
[1644213426124,0.28441127,42830.0,42821.0,0.01]
[1644213426325,0.28441127,42830.0,42822.0,0.08897721]
[1644213426326,0.33441127,42830.0,42822.0,0.08897721]
[1644213426525,0.15148,42828.0,42822.0,0.08897721]
[1644213426725,0.29670983,42827.0,42822.0,0.08897721]
[1644213426925,0.326806,42826.0,42822.0,0.08897721]
[1644213427324,0.1,42826.0,42822.0,0.08897721]
[1644213427725,0.1,42826.0,42822.0,0.08967499]
[1644213428380,0.29670983,42827.0,42822.0,0.08967499]
[1644213428581,0.326806,42829.0,42822.0,0.08967499]
[1644213428780,0.326806,42829.0,42822.0,0.08897721]
[1644213428781,0.426806,42829.0,42822.0,0.08897721]
[1644213429081,0.42708773,42829.0,42822.0,0.08967499]
[1644213430082,0.42708773,42829.0,42822.0,0.08897721]
[1644213430282,0.42708773,42829.0,42823.0,0.00069776]
[1644213431282,0.42708773,42829.0,42822.0,0.08897721]
[1644213431482,0.42708773,42829.0,42824.0,0.00069776]
[1644213431934,0.426806,42829.0,42824.0,0.00069776]
[1644213432342,0.426806,42829.0,42822.0,0.08897721]
[1644213432533,0.426806,42829.0,42824.0,0.00066124]
[1644213433535,0.426806,42829.0,42822.0,0.08897721]
[1644213433736,0.426806,42829.0,42824.0,0.00066124]
[1644213434536,0.426806,42829.0,42825.0,0.19584159]
[1644213435036,0.426806,42829.0,42825.0,0.19650283]
[1644213435236,0.426806,42829.0,42825.0,0.00066124]
[1644213436076,0.426806,42829.0,42822.0,0.08897721]
[1644213436276,0.426806,42829.0,42825.0,0.00066124]
[1644213437278,0.426806,42829.0,42822.0,0.08897721]
[1644213437480,0.426806,42829.0,42825.0,0.00066655]
[1644213438479,0.426806,42829.0,42822.0,0.08897721]
[1644213438678,0.426806,42829.0,42825.0,0.00066655]
[1644213439525,0.426806,42829.0,42822.0,0.08897721]
[1644213439729,0.426806,42829.0,42825.0,0.00066655]
[1644213440032,0.42708773,42829.0,42825.0,0.00066655]
[1644213440928,0.42708773,42829.0,42825.0,0.00066577]
[1644213441728,0.0468,42828.0,42825.0,0.00066577]
[1644213441929,0.63839248,42827.0,42822.0,0.08897721]
[1644213442128,0.0468,42826.0,42824.0,0.00066578]
[1644213442327,0.61127405,42825.0,42824.0,0.00066578]
[1644213443177,0.71127405,42825.0,42822.0,0.08897721]
[1644213443376,0.38428105,42825.0,42822.0,0.08964301]
[1644213443778,0.26571665,42824.0,42822.0,0.08964301]
[1644213444379,0.19584946,42826.0,42822.0,0.08897721]
[1644213444578,0.28404831,42825.0,42822.0,0.08897721]
[1644213444779,0.00028173,42829.0,42822.0,0.08897721]
[1644213444980,0.49170533,42830.0,42822.0,0.08897721]
[1644213445179,0.32708773,42829.0,42822.0,0.08897721]
[1644213445382,0.426806,42829.0,42827.0,0.25050096]
[1644213445580,0.42708773,42829.0,42827.0,0.25050096]
[1644213445781,0.426806,42829.0,42827.0,0.25050096]
[1644213447627,0.26761842,42828.0,42827.0,0.25050096]
[1644213447827,0.41909842,42828.0,42827.0,0.25050096]
[1644213448030,0.1,42829.0,42827.0,0.25050096]
[1644213448226,0.1,42828.0,42827.0,0.25050096]
[1644213448427,0.1,42829.0,42827.0,0.25050096]
[1644213449328,0.00028173,42832.0,42827.0,0.25050096]
[1644213449527,0.15148,42832.0,42827.0,0.25050096]
[1644213449727,0.15176173,42832.0,42827.0,0.25050096]
[1644213450578,0.15176173,42832.0,42827.0,0.2511668]
[1644213450978,0.15176173,42832.0,42829.0,0.07871216]
[1644213451179,0.15148,42832.0,42829.0,0.07871216]
[1644213454534,0.1,42833.0,42829.0,0.07871216]
[1644213454731,0.15028173,42836.0,42829.0,0.07871216]
[1644213454931,0.00028173,42834.0,42830.0,0.05]
[1644213455131,0.15,42836.0,42830.0,0.05]
[1644213455332,0.00028173,42835.0,42830.0,0.05]
[1644213455533,0.15028173,42836.0,42830.0,0.05]
[1644213455732,0.00028173,42835.0,42830.0,0.05]
[1644213455934,0.326806,42836.0,42830.0,0.05]
[1644213456232,0.376806,42836.0,42830.0,0.05]
[1644213456434,0.326806,42835.0,42830.0,0.05]
[1644213456634,0.15148,42834.0,42831.0,0.00069794]
[1644213457635,0.1,42835.0,42830.0,0.05]
[1644213457835,0.00028173,42834.0,42830.0,0.05069795]
[1644213458083,0.00028173,42836.0,42830.0,0.05069795]
[1644213458284,0.00028173,42837.0,42830.0,0.05069795]
[1644213458488,0.05028173,42838.0,42830.0,0.05069795]
[1644213458684,0.00028173,42837.0,42830.0,0.05069795]
[1644213458887,0.27665303,42837.0,42834.0,0.2222597]
[1644213459087,0.326806,42836.0,42834.0,0.2222597]
[1644213459488,0.326806,42836.0,42832.0,0.00069793]
[1644213459688,0.42708773,42836.0,42832.0,0.00069793]
[1644213460090,0.42708773,42836.0,42830.0,0.05]
[1644213460288,0.42708773,42836.0,42832.0,0.00069793]
[1644213460487,0.426806,42836.0,42832.0,0.21818151]
[1644213460689,0.15148,42835.0,42832.0,0.21818151]
[1644213460887,0.40802904,42841.0,42832.0,0.21818151]
[1644213461093,0.00028173,42839.0,42832.0,0.21818151]
[1644213461290,0.15148,42838.0,42832.0,0.21748358]
[1644213461489,0.15148,42838.0,42834.0,0.0006979]
[1644213461688,0.41723437,42838.0,42834.0,0.0006979]
[1644213461937,0.51723437,42838.0,42834.0,0.0006979]
[1644213462438,0.51723437,42838.0,42832.0,0.21748358]
[1644213462636,0.08016781,42837.0,42834.0,0.00069791]
[1644213462837,0.326806,42836.0,42834.0,0.00069791]
[1644213463237,0.426806,42836.0,42834.0,0.00069791]
[1644213463640,0.426806,42836.0,42832.0,0.21748358]
[1644213463837,0.426806,42836.0,42833.0,0.00069792]
[1644213464838,0.426806,42836.0,42832.0,0.21748358]
[1644213465038,0.426806,42836.0,42832.0,0.2181815]
[1644213465976,0.426806,42836.0,42832.0,0.21748358]
[1644213466179,0.27006955,42835.0,42832.0,0.21818151]
[1644213466378,0.15148,42834.0,42832.0,0.21818151]
[1644213466576,0.1,42836.0,42832.0,0.21818151]
[1644213466777,0.32708765,42835.0,42832.0,0.21818151]
[1644213466976,0.326806,42835.0,42832.0,0.21818151]
[1644213467179,0.15148,42834.0,42832.0,0.21748358]
[1644213467580,0.1,42835.0,42832.0,0.21748358]
[1644213468280,0.00028165,42837.0,42832.0,0.21748358]
[1644213468480,0.29420906,42838.0,42832.0,0.21748358]
[1644213468481,0.326806,42836.0,42832.0,0.21748358]
[1644213468684,0.26789063,42835.0,42832.0,0.21748358]
[1644213468881,0.326806,42837.0,42832.0,0.21748358]
[1644213469081,0.32708765,42837.0,42832.0,0.21748358]
[1644213469330,0.42708765,42837.0,42832.0,0.21748358]
[1644213469726,0.42708765,42837.0,42832.0,0.2181815]
[1644213469927,0.1,42837.0,42832.0,0.2181815]
[1644213470428,0.00028165,42840.0,42836.0,0.019011]
[1644213470727,0.75,42837.0,42832.0,0.21748358]
[1644213470927,0.15148,42836.0,42834.0,0.00069745]
[1644213472026,0.15148,42836.0,42830.0,0.05]
[1644213472229,0.15176165,42836.0,42833.0,0.00069745]
[1644213472428,0.15148,42836.0,42833.0,0.00069745]
[1644213473280,0.15148,42836.0,42830.0,0.25544454]
[1644213473480,0.15176165,42836.0,42832.0,0.00069746]
[1644213474380,0.15176165,42836.0,42830.0,0.25544454]
[1644213474582,0.00028165,42836.0,42832.0,0.00069793]
[1644213474780,0.00028165,42839.0,42832.0,0.00069793]
[1644213474982,0.00028165,42836.0,42832.0,0.00069793]
[1644213475180,0.37341613,42840.0,42832.0,0.00069793]
[1644213475382,0.32708765,42839.0,42832.0,0.00069793]
[1644213475581,0.52489108,42839.0,42830.0,0.25544454]
[1644213475780,0.62517273,42839.0,42834.0,0.00069791]
[1644213476585,0.62517273,42839.0,42837.0,0.22801747]
[1644213476832,0.62489108,42839.0,42837.0,0.22801747]
[1644213477229,0.26519159,42838.0,42837.0,0.22801747]
[1644213477427,0.41667159,42838.0,42837.0,0.22801747]
[1644213477628,0.41667159,42838.0,42834.0,0.0006979]
[1644213477828,0.326806,42837.0,42834.0,0.0006979]
[1644213478029,0.326806,42837.0,42830.0,0.05]
[1644213478229,0.42708765,42837.0,42834.0,0.00069791]
[1644213478429,0.426806,42837.0,42834.0,0.00069791]
[1644213479231,0.426806,42837.0,42830.0,0.26667107]
[1644213479428,0.42708765,42837.0,42833.0,0.00069791]
[1644213480584,0.42708765,42837.0,42833.0,0.00069792]
[1644213481385,0.7,42836.0,42830.0,0.21736899]
[1644213481585,0.15148,42835.0,42830.0,0.21736899]
[1644213481887,0.41556963,42835.0,42830.0,0.21736899]
[1644213482685,0.41528798,42835.0,42830.0,0.21736899]
[1644213482887,0.15148,42835.0,42830.0,0.21736899]
[1644213483086,0.00028165,42836.0,42830.0,0.21788105]
[1644213483287,0.00028165,42837.0,42830.0,0.21788105]
[1644213483486,0.00028165,42836.0,42830.0,0.21788105]
[1644213483688,0.00028165,42837.0,42831.0,0.05]
[1644213483887,0.2807921,42838.0,42831.0,0.05]
[1644213484088,0.00028165,42837.0,42831.0,0.05]
[1644213484337,0.28051045,42838.0,42831.0,0.05051206]
[1644213484534,0.00028165,42837.0,42831.0,0.05051206]
[1644213484732,0.50731605,42838.0,42831.0,0.05051206]
[1644213484934,0.32708765,42837.0,42831.0,0.00051206]
[1644213485131,0.326806,42837.0,42831.0,0.10051206]
[1644213485331,0.42708765,42837.0,42831.0,0.1]
[1644213485533,0.42708765,42837.0,42831.0,0.10069795]
[1644213486436,0.42708765,42837.0,42831.0,0.1]
[1644213486735,0.42708765,42837.0,42831.0,0.10069795]
[1644213487535,0.42708765,42837.0,42831.0,0.1]
[1644213487937,0.42708765,42837.0,42831.0,0.10069795]
[1644213488379,0.10028165,42837.0,42831.0,0.10069795]
[1644213488778,0.00028165,42837.0,42831.0,0.1]
[1644213489079,0.32652395,42838.0,42837.0,0.249545]
[1644213489278,0.426806,42838.0,42837.0,0.249545]
[1644213489880,0.1,42838.0,42837.0,0.249545]
[1644213490280,0.00018647,42840.0,42837.0,0.249545]
[1644213491281,0.00028224,42842.0,42837.0,0.249545]
[1644213491481,0.00062131,42841.0,42837.0,0.249545]
[1644213492434,0.00028224,42842.0,42837.0,0.249545]
[1644213492630,0.00062131,42841.0,42837.0,0.249545]
[1644213493633,0.00028224,42842.0,42837.0,0.249545]
[1644213493832,0.00062131,42841.0,42837.0,0.249545]
[1644213494834,0.00028224,42842.0,42837.0,0.249545]
[1644213495038,0.00062131,42841.0,42837.0,0.249545]
[1644213495435,0.11111771,42843.0,42837.0,0.249545]
[1644213495677,0.00028243,42841.0,42837.0,0.249545]
[1644213495879,0.07864769,42844.0,42837.0,0.249545]
[1644213496078,0.00028243,42843.0,42837.0,0.249545]
[1644213496282,0.00028243,42844.0,42837.0,0.249545]
[1644213496480,0.00028243,42843.0,42837.0,0.249545]
[1644213496682,0.43874467,42845.0,42837.0,0.249545]
[1644213496882,0.00028243,42844.0,42839.0,0.05]
[1644213497081,0.58874467,42845.0,42839.0,0.05]
[1644213497281,0.07856825,42843.0,42839.0,0.05]
[1644213497685,0.07885068,42843.0,42839.0,0.05]
[1644213498682,0.07875464,42843.0,42839.0,0.05]
[1644213499732,0.326806,42842.0,42839.0,0.05]
[1644213499930,0.426806,42842.0,42839.0,0.05]
[1644213500532,0.426806,42842.0,42839.0,0.04866491]
[1644213502436,0.1,42842.0,42839.0,0.04866491]
[1644213502839,0.00061975,42843.0,42839.0,0.04866491]
[1644213503282,0.08137872,42841.0,42839.0,0.04866491]
[1644213503483,0.00061976,42843.0,42839.0,0.04866491]
[1644213503682,0.00090219,42843.0,42839.0,0.04866491]
[1644213504485,0.00028243,42843.0,42839.0,0.04866491]
[1644213504684,0.00061976,42843.0,42839.0,0.04866491]
[1644213504884,0.00090219,42843.0,42836.0,0.1]
[1644213505184,0.00061976,42843.0,42837.0,0.05]
[1644213505388,0.00061976,42843.0,42841.0,0.05]
[1644213505584,0.00028243,42844.0,42842.0,0.24713355]
[1644213505784,0.00028243,42848.0,42842.0,0.24713355]
[1644213505986,0.00061976,42844.0,42842.0,0.24713355]
[1644213507036,0.00028243,42845.0,42840.0,0.05]
[1644213507235,0.00061976,42845.0,42840.0,0.05]
[1644213507436,0.26862452,42845.0,42840.0,0.05]
[1644213507635,0.326806,42844.0,42838.0,0.05]
[1644213507837,0.28041299,42843.0,42838.0,0.05]
[1644213508040,0.28069542,42843.0,42838.0,0.24816115]
[1644213508437,0.28131517,42843.0,42838.0,0.24816115]
[1644213508637,0.28131517,42843.0,42838.0,0.05]
[1644213509236,0.28131517,42843.0,42837.0,0.15]
[1644213509237,0.28041299,42843.0,42837.0,0.15]
[1644213509436,0.28069542,42843.0,42837.0,0.15]
[1644213509636,0.28131517,42843.0,42837.0,0.15]
[1644213509836,0.08688802,42838.0,42837.0,0.15]
[1644213510037,0.00028243,42842.0,42837.0,0.15]
[1644213510237,0.38131517,42843.0,42837.0,0.15]
[1644213510438,0.00028243,42842.0,42837.0,0.15]
[1644213510687,0.38131516,42843.0,42837.0,0.15]
[1644213510883,0.00028243,42842.0,42837.0,0.15]
[1644213511084,2.38504432,42838.0,42837.0,0.1]
[1644213511286,2.38504432,42838.0,42837.0,0.15]
[1644213511586,2.48504432,42838.0,42837.0,0.05]
[1644213511985,0.326806,42836.0,42835.0,0.00065093]
[1644213512186,0.68278902,42836.0,42835.0,0.00065093]
[1644213512386,0.7170586,42836.0,42835.0,0.00065093]
[1644213512587,1.02595575,42836.0,42835.0,0.00065093]
[1644213512986,0.06611913,42830.0,42827.0,0.05]
[1644213513686,0.0468,42833.0,42827.0,0.05]
[1644213513887,0.0468,42833.0,42828.0,1.20717015]
[1644213514087,0.326806,42832.0,42828.0,0.1]
[1644213514347,0.426806,42832.0,42828.0,0.100651]
[1644213514534,0.69032931,42832.0,42828.0,0.100651]
[1644213514732,0.426806,42832.0,42828.0,0.100651]
[1644213514933,0.69200473,42832.0,42828.0,0.100651]
[1644213515134,0.76379839,42832.0,42828.0,0.100651]
[1644213515334,0.51455066,42832.0,42828.0,0.1]
[1644213515535,0.77728031,42832.0,42828.0,0.10065145]
[1644213515838,0.77929377,42832.0,42828.0,0.00065145]
[1644213516436,0.76229377,42832.0,42827.0,0.05]
[1644213516635,0.76229377,42832.0,42828.0,0.00061499]
[1644213517637,0.77929377,42832.0,42827.0,0.05]
[1644213517837,0.77929377,42832.0,42828.0,0.00061499]
[1644213518291,0.0468,42831.0,42828.0,0.00061499]
[1644213518596,0.15148,42830.0,42828.0,0.00061499]
[1644213518790,0.0468,42829.0,42828.0,0.00061499]
[1644213518989,0.0468,42829.0,42827.0,0.05]
[1644213518990,0.372577,42829.0,42827.0,0.05]
[1644213519189,0.61583293,42829.0,42827.0,0.05061572]
[1644213519489,0.72783293,42829.0,42827.0,0.05061572]
[1644213520093,0.72783293,42829.0,42827.0,0.05]
[1644213520288,0.30535975,42828.0,42827.0,0.05]
[1644213520489,0.50363975,42828.0,42827.0,0.05]
[1644213520789,0.60363975,42828.0,42827.0,0.05]
[1644213521389,0.61663975,42828.0,42827.0,0.05]
[1644213522636,0.60363975,42828.0,42827.0,0.05]
[1644213523436,0.61663975,42828.0,42827.0,0.05]
[1644213524638,0.60363975,42828.0,42827.0,0.05]
[1644213525437,0.61663975,42828.0,42827.0,0.05]
[1644213526589,0.18300768,42833.0,42827.0,0.45054472]
[1644213526792,0.00051318,42843.0,42831.0,0.15]
[1644213526793,0.00028243,42840.0,42831.0,0.15]
[1644213526988,0.32696143,42842.0,42834.0,0.05]
[1644213527189,0.32696143,42842.0,42836.0,0.05]
[1644213527190,0.00028243,42840.0,42836.0,0.05]
[1644213527388,0.19043925,42838.0,42836.0,0.05]
[1644213527587,0.326679,42837.0,42836.0,0.05]
[1644213527788,0.19043925,42838.0,42836.0,0.05]
[1644213528188,0.27239116,42838.0,42836.0,0.05]
[1644213529190,0.08195191,42838.0,42836.0,0.05]
[1644213529441,0.09495191,42838.0,42836.0,0.05]
[1644213529641,0.326679,42837.0,42836.0,0.05]
[1644213529840,0.426679,42837.0,42836.0,0.05]
[1644213530843,0.326679,42837.0,42836.0,0.05]
[1644213531046,0.150578,42837.0,42836.0,0.05]
[1644213531246,0.08195191,42838.0,42836.0,0.05]
[1644213531445,0.013,42837.0,42836.0,0.05]
[1644213532250,0.339679,42837.0,42836.0,0.05]
[1644213532449,0.439679,42837.0,42836.0,0.05]
[1644213532647,0.68578825,42837.0,42834.0,0.00062007]
[1644213532851,0.0468,42836.0,42834.0,0.00062007]
[1644213533106,0.37752913,42835.0,42834.0,0.00062007]
[1644213533302,0.2272085,42827.0,42826.0,0.05]
[1644213533604,0.2740085,42827.0,42826.0,0.05]
[1644213534307,0.78848329,42827.0,42826.0,0.05]
[1644213534602,0.78852749,42827.0,42826.0,0.05]
[1644213534804,0.88852749,42827.0,42826.0,0.05]
[1644213535402,0.90052749,42827.0,42826.0,0.05]
[1644213535907,0.150578,42826.0,42824.0,0.00062018]
[1644213536107,0.7968,42825.0,42809.0,0.00020646]
[1644213536306,0.585,42823.0,42812.0,0.00020646]
[1644213536504,0.0816349,42811.0,42810.0,0.05]
[1644213536704,0.0816349,42811.0,42810.0,0.10839075]
[1644213537141,0.0468,42815.0,42810.0,0.15839075]
[1644213537339,0.4969648,42822.0,42810.0,0.15839075]
[1644213537340,0.45390162,42822.0,42814.0,0.1]
[1644213537539,0.326679,42821.0,42819.0,0.05]
[1644213537739,0.1468,42822.0,42819.0,0.05]
[1644213537937,0.7002,42835.0,42819.0,0.05]
[1644213537938,0.1,42827.0,42819.0,0.05]
[1644213538137,0.1,42825.0,42819.0,0.05]
[1644213538338,0.07995802,42821.0,42819.0,0.10838157]
[1644213538738,0.07995802,42821.0,42819.0,0.15838157]
[1644213538941,0.07995802,42821.0,42819.0,0.10838157]
[1644213539239,0.07995802,42821.0,42819.0,0.15838157]
[1644213539445,0.09195802,42821.0,42819.0,0.15838157]
[1644213540241,0.09195802,42821.0,42820.0,0.1]
[1644213540443,0.09195802,42821.0,42819.0,0.05]
[1644213540687,0.09195802,42821.0,42818.0,0.28406859]
[1644213540688,0.07995802,42821.0,42818.0,0.28406859]
[1644213541491,0.09395802,42821.0,42818.0,0.28406859]
[1644213541688,0.09395802,42821.0,42818.0,0.28337042]
[1644213541889,0.2609799,42820.0,42817.0,0.00069818]
[1644213542891,0.0468,42819.0,42812.0,0.54960646]
[1644213543093,0.0468,42819.0,42816.0,0.00069819]
[1644213543491,0.0588,42819.0,42816.0,0.00069819]
[1644213544191,0.0588,42819.0,42812.0,0.05]
[1644213544447,0.0588,42819.0,42815.0,0.0006982]
[1644213544748,0.0468,42819.0,42815.0,0.0006982]